bitfinex-derivatives/quotes_SOLF0:USTF0_20250719
["timestamp","ask_amount","ask_price","bid_price","bid_amount"]
[1752911332585,3.15,177.06,177.04,3.26]
[1752911333388,3.15,177.07,177.05,3.26]
[1752911334189,3.15,177.06,177.05,3.26]
[1752911334686,3.15,177.07,177.05,3.26]
[1752911335188,3.15,177.06,177.05,3.26]
[1752911340191,7.854935,177.08,177.05,3.26]
[1752911340396,11.004935,177.08,177.05,3.26]
[1752911340795,3.15,177.07,177.05,3.26]
[1752911341793,7.854935,177.08,177.05,3.26]
[1752911341994,3.15,177.07,177.06,3.26]
[1752911342298,3.15,177.06,177.02,5.645]
[1752911342596,3.15,177.06,177.03,3.26]
[1752911343092,5.6437,177.07,177.03,3.26]
[1752911343399,3.15,177.07,177.04,3.26]
[1752911344191,3.15,177.07,177.04,8.9046]
[1752911344402,3.15,177.06,177.0,4.71311416]
[1752911345001,3.15,177.06,176.98,2.211535]
[1752911345002,3.15,177.06,177.04,3.26]
[1752911345493,5.6437,177.07,177.04,3.26]
[1752911345699,3.33,177.07,177.05,3.25]
[1752911346693,2.211535,177.08,177.05,3.25]
[1752911346997,1.4145928,177.06,177.05,3.25]
[1752911347800,1.4145928,177.06,177.05,8.8943]
[1752911349097,1.4145928,177.07,177.06,3.25]
[1752911349292,4.7445928,177.07,177.06,3.25]
[1752911351399,1.4145928,177.07,177.06,3.25]
[1752911351603,1.4145928,177.08,177.06,3.25]
[1752911352798,1.4145928,177.08,177.07,5.6435]
[1752911353004,1.4145928,177.08,177.07,8.8935]
[1752911362906,3.33,177.09,177.08,3.25]
[1752911363107,4.7445928,177.09,177.08,3.25]
[1752911366609,1.4145928,177.11,177.08,4.6645928]
[1752911366800,4.7445928,177.12,177.09,3.25]
[1752911367300,4.7445928,177.12,177.11,3.25]
[1752911368809,4.7445928,177.12,177.11,8.8924]
[1752911369509,3.33,177.12,177.11,8.8924]
[1752911369709,1.4145928,177.13,177.11,5.6424]
[1752911369909,4.7445928,177.13,177.12,3.25]
[1752911370809,3.33,177.12,177.11,3.25]
[1752911377826,3.33,177.12,177.04,4.4245928]
[1752911378124,3.15,177.06,177.05,3.01]
[1752911378318,4.5645928,177.06,177.05,3.01]
[1752911383523,3.15,177.05,177.0,3.01]
[1752911383724,1.4145928,177.02,177.0,3.01]
[1752911384123,1.4145928,177.02,177.01,8.6555]
[1752911385024,5.36132698,177.04,177.01,8.6555]
[1752911385219,5.36132698,177.04,177.02,3.01]
[1752911388723,2.21132698,177.04,177.02,3.01]
[1752911388928,3.15,177.05,177.02,3.01]
[1752911389726,5.36132698,177.06,177.02,3.01]
[1752911389929,5.36132698,177.06,176.99,198.35587114]
[1752911390124,2.21132698,177.06,177.0,3.01]
[1752911390333,5.36132698,177.06,177.0,3.01]
[1752911391430,5.36132698,177.06,177.04,3.01]
[1752911393933,5.36132698,177.08,177.05,3.01]
[1752911394932,3.15,177.07,177.05,3.01]
[1752911395529,3.15,177.09,177.05,8.654]
[1752911395735,2.21132698,177.09,177.06,3.01]
[1752911395943,107.80132698,177.11,177.06,3.01]
[1752911396141,5.36132698,177.11,177.06,3.01]
[1752911396948,3.15,177.11,177.09,3.01]
[1752911397838,3.15,177.11,177.09,8.6527]
[1752911398030,3.15,177.11,177.1,3.01]
[1752911398230,3.15,177.12,177.1,3.01]
[1752911399637,3.15,177.14,177.11,3.01]
[1752911401338,7.85212698,177.15,177.11,3.01]
[1752911401537,3.15,177.13,177.11,3.01]
[1752911402037,3.15,177.12,177.11,3.01]
[1752911402232,3.15,177.12,177.03,3.01]
[1752911402538,3.15,177.09,177.03,3.01]
[1752911402942,2.21132698,177.1,177.03,3.01]
[1752911403238,2.21132698,177.1,177.06,3.01]
[1752911403443,3.15,177.09,177.07,3.01]
[1752911404535,5.36132698,177.1,177.08,3.01]
[1752911404741,3.15,177.09,177.06,5.6436]
[1752911405241,3.25,177.08,177.07,3.02]
[1752911407241,5.46132698,177.08,177.04,5.6442]
[1752911407446,3.25,177.07,177.06,3.02]
[1752911408945,5.46132698,177.08,177.06,3.02]
[1752911410646,5.46132698,177.08,177.07,3.02]
[1752911424751,2.21132698,177.08,177.07,3.02]
[1752911424951,1.41436725,177.08,177.07,3.02]
[1752911425153,3.25,177.07,177.02,1.41436725]
[1752911425353,3.25,177.05,177.03,3.02]
[1752911426053,4.66436725,177.06,177.05,3.02]
[1752911426250,1.41436725,177.06,177.05,3.02]
[1752911427359,1.41436725,177.06,177.05,8.664]
[1752911432955,3.25,177.09,177.06,5.6435]
[1752911433162,3.25,177.09,177.07,3.02]
[1752911433360,1.41436725,177.08,177.07,3.02]
[1752911433559,4.66436725,177.08,177.07,3.02]
[1752911434559,1.41436725,177.08,177.07,8.6633]
[1752911434752,1.41436725,177.08,177.07,3.02]
[1752911435157,1.41436725,177.08,177.07,8.6633]
[1752911436165,3.16,177.09,177.08,8.843]
[1752911436462,4.57436725,177.09,177.08,8.843]
[1752911437463,1.41436725,177.09,177.08,8.843]
[1752911438263,3.16,177.11,177.1,3.2]
[1752911438464,4.57436725,177.11,177.1,3.2]
[1752911438664,4.57436725,177.11,177.1,8.8424]
[1752911441264,1.41436725,177.11,177.1,8.8424]
[1752911441464,1.41436725,177.11,177.05,1.41436725]
[1752911441465,3.16,177.14,177.12,3.2]
[1752911441869,1.41436725,177.13,177.12,8.8418]
[1752911446874,1.41436725,177.13,177.12,3.2]
[1752911447073,4.57436725,177.13,177.12,3.2]
[1752911447972,1.41436725,177.13,177.12,3.2]
[1752911449063,4.57436725,177.13,177.12,3.2]
[1752911454875,1.41436725,177.14,177.12,3.2]
[1752911455371,1.41436725,177.14,177.13,8.8412]
[1752911458682,3.16,177.18,177.13,3.2]
[1752911458883,1.41436725,177.15,177.13,3.2]
[1752911459887,3.16,177.17,177.14,3.2]
[1752911460080,1.41436725,177.16,177.14,3.2]
[1752911460281,1.41436725,177.17,177.14,3.2]
[1752911460485,1.41436725,177.17,177.16,3.2]
[1752911460682,3.16,177.18,177.16,3.2]
[1752911460887,1.41436725,177.17,177.16,3.2]
[1752911461684,1.41436725,177.17,177.16,8.8402]
[1752911462482,102.42,177.2,177.17,5.6401]
[1752911462688,105.58,177.2,177.18,3.2]
[1752911462987,3.16,177.19,177.18,3.2]
[1752911463890,4.57436725,177.19,177.18,3.2]
[1752911467990,3.02,177.18,177.17,3.27]
[1752911468190,4.43436725,177.18,177.17,3.27]
[1752911470794,3.02,177.17,177.14,3.27]
[1752911470996,1.41436725,177.15,177.14,3.27]
[1752911471194,4.43436725,177.16,177.14,3.27]
[1752911471392,1.41436725,177.16,177.14,8.911]
[1752911471594,4.43436725,177.16,177.15,3.27]
[1752911472693,1.41436725,177.16,177.15,3.27]
[1752911474097,4.43436725,177.16,177.15,3.27]
[1752911474697,3.02,177.15,177.12,3.27]
[1752911474895,4.43436725,177.13,177.12,3.27]
[1752911483505,1.41436725,177.13,177.12,3.27]
[1752911484208,4.43436725,177.13,177.12,3.27]
[1752911484811,3.02,177.13,177.12,3.27]
[1752911485011,4.43436725,177.13,177.12,3.27]
[1752911491517,1.41436725,177.13,177.12,3.27]
[1752911492418,4.43436725,177.13,177.12,3.27]
[1752911494519,3.02,177.12,177.09,3.27]
[1752911494724,1.41436725,177.12,177.09,3.27]
[1752911495024,4.43436725,177.11,177.09,3.27]
[1752911496929,1.41436725,177.11,177.09,3.27]
[1752911497722,1.41436725,177.13,177.1,3.33]
[1752911501127,4.60436725,177.13,177.1,3.33]
[1752911501327,1.41436725,177.12,177.1,3.33]
[1752911503427,1.41436725,177.12,177.1,8.9722]
[1752911503626,1.41436725,177.13,177.11,3.33]
[1752911504028,4.60436725,177.13,177.11,3.33]
[1752911505831,1.41436725,177.12,177.11,3.33]
[1752911506431,4.60436725,177.12,177.11,3.33]
[1752911506632,3.19,177.13,177.11,3.33]
[1752911506833,1.41436725,177.12,177.11,3.33]
[1752911509330,1.41436725,177.15,177.12,3.33]
[1752911510733,4.60436725,177.15,177.12,3.33]
[1752911511932,3.19,177.17,177.11,1.41436725]
[1752911512134,1.41436725,177.15,177.13,3.33]
[1752911512533,4.60436725,177.17,177.13,8.9711]
[1752911512735,4.60436725,177.17,177.14,3.33]
[1752911516147,5.6395,177.19,177.14,5.6409]
[1752911516342,1.41436725,177.17,177.15,3.33]
[1752911516744,1.41436725,177.17,177.16,3.33]
[1752911518646,4.60436725,177.18,177.16,3.33]
[1752911521547,1.41436725,177.17,177.16,3.33]
[1752911521750,4.60436725,177.17,177.16,3.33]
[1752911527057,1.41436725,177.17,177.16,3.33]
[1752911527762,4.60436725,177.17,177.16,3.33]
[1752911529966,3.19,177.17,177.16,3.33]
[1752911530265,4.60436725,177.17,177.16,3.33]
[1752911532664,1.41436725,177.17,177.16,3.33]
[1752911533970,3.19,177.18,177.16,3.33]
[1752911534169,1.41436725,177.17,177.16,3.33]
[1752911534468,4.60436725,177.17,177.16,3.33]
[1752911534870,3.19,177.17,177.16,3.33]
[1752911535071,4.60436725,177.17,177.16,3.33]
[1752911541178,1.41436725,177.17,177.16,3.33]
[1752911543380,4.60436725,177.17,177.16,3.33]
[1752911548486,1.41436725,177.17,177.16,3.33]
[1752911548985,1.41436725,177.18,177.17,3.31]
[1752911549484,4.60436725,177.18,177.17,3.31]
[1752911557990,3.19,177.18,177.17,3.31]
[1752911558190,4.60436725,177.18,177.17,3.31]
[1752911561996,1.41436725,177.18,177.17,3.31]
[1752911563799,4.41436725,177.18,177.17,3.31]
[1752911568499,1.41436725,177.18,177.17,3.31]
[1752911569102,4.41436725,177.18,177.17,3.31]
[1752911570906,3.0,177.18,177.17,3.31]
[1752911571099,4.41436725,177.18,177.17,3.31]
[1752911580212,3.0,177.17,177.16,3.13]
[1752911581211,1.41436725,177.18,177.16,3.13]
[1752911581408,4.41436725,177.18,177.16,3.13]
[1752911582112,3.0,177.17,177.16,3.13]
[1752911583514,3.0,177.17,177.16,8.7703]
[1752911584012,1.41436725,177.18,177.16,8.7703]
[1752911584213,4.41436725,177.18,177.17,3.13]
[1752911585415,1.41436725,177.18,177.17,3.13]
[1752911586816,4.62436725,177.18,177.17,3.13]
[1752911604221,1.41436725,177.18,177.17,3.13]
[1752911605022,4.62436725,177.18,177.17,3.13]
[1752911617336,3.34,177.17,177.15,3.2]
[1752911617536,4.75436725,177.16,177.15,3.2]
[1752911618838,3.34,177.18,177.15,3.2]
[1752911619036,1.41436725,177.16,177.15,3.2]
[1752911619738,1.41436725,177.17,177.15,3.2]
[1752911620241,4.75436725,177.17,177.15,3.2]
[1752911622735,1.41436725,177.16,177.15,3.2]
[1752911623043,4.75436725,177.17,177.15,3.2]
[1752911623344,1.41436725,177.18,177.15,3.2]
[1752911623644,4.75436725,177.19,177.16,3.2]
[1752911624846,4.75436725,177.19,177.17,3.2]
[1752911625044,1.41436725,177.18,177.17,3.2]
[1752911627948,5.6382,177.23,177.17,8.84]
[1752911628143,1.41436725,177.18,177.17,5.64]
[1752911628645,1.41436725,177.18,177.17,8.84]
[1752911631046,1.41436725,177.18,177.17,3.2]
[1752911638152,4.75436725,177.18,177.17,3.2]
[1752911638449,3.34,177.19,177.17,3.2]
[1752911638649,4.75436725,177.19,177.17,8.84]
[1752911639454,1.41436725,177.19,177.17,8.84]
[1752911639745,4.75436725,177.19,177.18,3.2]
[1752911640146,3.34,177.21,177.18,3.2]
[1752911640351,1.41436725,177.21,177.19,3.2]
[1752911640851,1.41436725,177.21,177.19,8.8394]
[1752911641053,1.41436725,177.21,177.2,3.2]
[1752911641450,1.41436725,177.21,177.2,8.8391]
[1752911642155,1.41436725,177.21,177.2,5.6391]
[1752911642753,1.41436725,177.21,177.2,8.8391]
[1752911644545,1.41436725,177.21,177.18,1.41436725]
[1752911644546,3.34,177.23,177.21,8.8388]
[1752911644744,4.75436725,177.23,177.22,3.2]
[1752911645253,1.41436725,177.23,177.22,3.2]
[1752911652958,4.46436725,177.23,177.22,3.2]
[1752911654060,1.41436725,177.23,177.22,3.2]
[1752911656453,4.46436725,177.23,177.22,3.2]
[1752911663660,1.41436725,177.23,177.22,3.2]
[1752911663862,1.41436725,177.23,177.22,8.8385]
[1752911664166,1.41436725,177.24,177.23,3.31]
[1752911664366,4.46436725,177.24,177.23,3.31]
[1752911667268,3.05,177.24,177.23,3.31]
[1752911667568,4.46436725,177.24,177.23,3.31]
[1752911668869,3.05,177.24,177.23,3.31]
[1752911669069,1.41436725,177.24,177.23,8.9481]
[1752911669770,4.46436725,177.24,177.23,8.9481]
[1752911672070,4.46436725,177.24,177.23,3.31]
[1752911677674,3.28,177.23,177.19,3.3]
[1752911677971,4.69436725,177.2,177.19,3.3]
[1752911682182,3.28,177.19,177.18,3.3]
[1752911682382,4.69436725,177.19,177.18,3.3]
[1752911684173,3.28,177.18,177.16,3.3]
[1752911684382,1.41436725,177.17,177.16,3.3]
[1752911684578,4.69436725,177.17,177.16,3.3]
[1752911684881,1.41436725,177.17,177.16,3.3]
[1752911687479,4.69436725,177.17,177.16,3.3]
[1752911688085,3.28,177.16,177.14,3.3]
[1752911688284,4.69436725,177.15,177.14,3.3]
[1752911691089,3.28,177.14,177.12,3.3]
[1752911691389,4.69436725,177.13,177.12,3.3]
[1752911694185,3.28,177.12,177.11,199.85816393]
[1752911694386,4.69436725,177.12,177.11,199.85816393]
[1752911694892,4.69436725,177.12,177.11,203.15816393]
[1752911695881,1.41436725,177.12,177.1,5.6423]
[1752911696085,3.28,177.12,177.11,3.3]
[1752911697192,4.69436725,177.12,177.11,3.3]
[1752911700597,1.41436725,177.12,177.11,8.942]
[1752911700791,1.41436725,177.12,177.11,3.3]
[1752911701493,4.69436725,177.12,177.11,3.3]
[1752911710204,3.26,177.11,177.07,3.21]
[1752911710501,4.67436725,177.08,177.07,3.21]
[1752911711606,4.67436725,177.08,177.07,8.8533]
[1752911712104,1.41436725,177.08,177.07,8.8533]
[1752911714001,1.41436725,177.09,177.08,5.643]
[1752911714208,1.41436725,177.09,177.08,3.21]
[1752911715807,1.41436725,177.09,177.08,8.853]
[1752911716802,3.26,177.12,177.1,3.21]
[1752911717002,1.41436725,177.11,177.1,3.21]
[1752911717206,4.67436725,177.11,177.1,3.21]
[1752911719916,4.67436725,177.11,177.09,3.21]
[1752911720110,4.67436725,177.1,177.09,3.21]
[1752911720716,4.67436725,177.1,177.08,3.21]
[1752911720909,4.67436725,177.09,177.08,3.21]
[1752911721612,3.26,177.08,177.07,3.21]
[1752911721914,4.67436725,177.08,177.07,3.21]
[1752911723617,4.67436725,177.08,177.06,3.21]
[1752911723812,5.6424,177.1,177.06,3.21]
[1752911723813,4.67436725,177.07,177.06,3.21]
[1752911724213,1.41436725,177.07,177.06,3.21]
[1752911724718,1.41436725,177.07,177.06,8.8536]
[1752911727818,1.41436725,177.07,177.06,3.21]
[1752911732022,4.67436725,177.07,177.06,3.21]
[1752911732219,3.26,177.09,177.07,3.21]
[1752911732525,1.41436725,177.08,177.07,3.21]
[1752911735124,4.60436725,177.08,177.07,3.21]
[1752911750534,3.19,177.07,177.04,3.22]
[1752911750732,4.60436725,177.05,177.04,3.22]
[1752911750931,4.60436725,177.05,177.03,189.49740033]
[1752911751129,3.19,177.03,177.02,3.22]
[1752911751335,4.60436725,177.03,177.02,3.22]
[1752911752136,4.60436725,177.03,177.02,8.8649]
[1752911756129,4.60436725,177.03,177.02,3.22]
[1752911756325,4.60436725,177.03,176.98,102.22]
[1752911756326,3.19,177.02,177.01,3.22]
[1752911756525,4.60436725,177.02,176.95,6.13662673]
[1752911756726,1.41436725,176.97,176.96,3.22]
[1752911757136,1.41436725,176.97,176.96,8.8668]
[1752911757430,4.60436725,176.97,176.96,8.8668]
[1752911758132,6.33566068,177.06,176.99,5.6458]
[1752911758437,1.41436725,177.0,176.99,3.22]
[1752911758932,1.41436725,177.0,176.99,8.8659]
[1752911759938,4.60436725,177.0,176.99,8.8659]
[1752911760237,4.60436725,177.0,176.99,3.22]
[1752911760733,1.41436725,177.0,176.98,3.22]
[1752911760932,102.24,177.08,176.96,5.6466]
[1752911760933,1.41436725,176.99,176.96,5.6466]
[1752911761138,3.19,176.98,176.97,3.22]
[1752911761337,4.60436725,176.98,176.97,3.22]
[1752911762237,3.19,176.97,176.96,8.8666]
[1752911763136,3.19,176.97,176.96,3.22]
[1752911765438,4.60436725,176.97,176.96,3.22]
[1752911768942,3.02,177.01,176.96,3.22]
[1752911769242,1.41436725,176.99,176.96,3.22]
[1752911770442,1.41436725,177.0,176.98,3.09]
[1752911770645,1.41436725,177.01,176.98,3.09]
[1752911771144,1.41436725,177.01,177.0,5.6453]
[1752911771344,1.41436725,177.01,177.0,8.7353]
[1752911771549,1.41436725,177.03,177.01,3.09]
[1752911771747,1.41436725,177.03,177.02,8.7349]
[1752911772941,5.23050059,177.06,177.04,5.6441]
[1752911773145,3.02,177.05,177.04,5.6441]
[1752911773745,3.02,177.05,177.04,8.7341]
[1752911773946,5.23050059,177.06,177.05,3.09]
[1752911774150,107.47050059,177.08,177.05,8.7339]
[1752911774351,3.02,177.07,177.06,3.09]
[1752911774753,104.45050059,177.08,177.06,8.7336]
[1752911774951,107.47050059,177.08,177.07,3.09]
[1752911775352,5.23050059,177.08,177.07,3.09]
[1752911776148,5.23050059,177.08,177.07,8.7333]
[1752911776149,3.02,177.08,177.07,8.7333]
[1752911776652,3.02,177.08,177.07,3.09]
[1752911781357,3.02,177.08,177.07,8.7333]
[1752911782860,3.02,177.08,177.07,3.09]
[1752911783360,5.23050059,177.1,177.07,3.09]
[1752911783561,3.02,177.09,177.07,3.09]
[1752911784857,3.02,177.09,177.07,8.7333]
[1752911785056,3.02,177.09,177.08,3.09]
[1752911788060,3.02,177.09,177.08,8.733]
[1752911788261,2.21050059,177.1,177.03,3.09]
[1752911788966,122.82527433,177.11,177.05,3.09]
[1752911789966,122.82527433,177.11,177.1,8.7323]
[1752911791669,122.82527433,177.11,177.1,3.09]
[1752911792461,125.84527433,177.11,177.1,3.09]
[1752911792668,102.24,177.12,177.06,2.21050059]
[1752911792973,102.24,177.12,177.07,3.09]
[1752911793179,3.02,177.13,177.07,3.09]
[1752911793668,5.23050059,177.14,177.07,3.09]
[1752911794772,5.23050059,177.14,177.11,5.6417]
[1752911794968,3.02,177.13,177.12,3.09]
[1752911795372,3.02,177.13,177.12,8.7317]
[1752911795669,3.02,177.13,177.12,3.09]
[1752911797874,3.02,177.13,177.12,8.7317]
[1752911798374,2.21050059,177.14,177.13,3.26]
[1752911798674,5.52050059,177.14,177.13,3.26]
[1752911799075,4.72340278,177.14,177.13,3.26]
[1752911800176,136.86048911,177.25,177.16,3.26]
[1752911800177,3.31,177.23,177.16,3.26]
[1752911800375,4.72340278,177.17,177.16,3.26]
[1752911800578,3.31,177.16,177.15,3.26]
[1752911800771,4.72340278,177.16,177.15,3.26]
[1752911805676,3.31,177.16,177.15,3.26]
[1752911805881,1.41340278,177.16,177.15,3.26]
[1752911806081,4.72340278,177.16,177.15,3.26]
[1752911806579,1.41340278,177.16,177.15,3.26]
[1752911806775,1.41340278,177.16,177.15,8.9008]
[1752911807479,4.72340278,177.16,177.15,8.9008]
[1752911807981,3.31,177.17,177.16,3.26]
[1752911808183,4.72340278,177.17,177.16,3.26]
[1752911808475,1.41340278,177.17,177.16,8.9004]
[1752911815187,1.41340278,177.17,177.16,3.26]
[1752911815389,4.72340278,177.17,177.16,3.26]
[1752911816985,4.72340278,177.17,176.97,16.97]
[1752911816986,1.41340278,177.17,177.11,1.41340278]
[1752911817185,4.72340278,177.15,177.11,1.41340278]
[1752911817593,1.41340278,177.15,177.14,5.641]
[1752911817889,1.41340278,177.15,177.14,8.901]
[1752911818190,3.31,177.16,177.14,8.901]
[1752911818383,1.41340278,177.15,177.14,5.641]
[1752911818992,1.41340278,177.15,177.14,8.901]
[1752911819892,1.41340278,177.16,177.14,3.26]
[1752911820891,1.41340278,177.16,177.15,5.6408]
[1752911821091,1.41340278,177.16,177.15,8.9008]
[1752911822991,1.41340278,177.19,177.15,1.41340278]
[1752911823289,1.41340278,177.19,177.16,3.26]
[1752911823492,1.41340278,177.2,177.16,1.41340278]
[1752911823690,3.31,177.23,177.17,4.67340278]
[1752911823886,1.41340278,177.21,177.18,3.26]
[1752911824398,4.72340278,177.21,177.2,8.8992]
[1752911824895,1.41340278,177.21,177.2,8.8992]
[1752911825495,1.41340278,177.22,177.21,8.8088]
[1752911826398,4.56340278,177.22,177.21,8.8088]
[1752911827695,3.15,177.21,177.14,3.17]
[1752911827902,1.41340278,177.19,177.15,1.41340278]
[1752911828102,4.56340278,177.19,177.16,3.17]
[1752911828301,3.15,177.18,177.17,8.8099]
[1752911830005,5.6385,177.23,177.18,5.6396]
[1752911830305,1.41340278,177.19,177.18,8.8096]
[1752911830599,4.56340278,177.19,177.18,8.8096]
[1752911833902,4.56340278,177.19,177.18,5.6396]
[1752911834203,4.56340278,177.19,177.18,8.8096]
[1752911836806,4.56340278,177.19,177.13,168.07292097]
[1752911836807,3.15,177.18,177.17,8.8101]
[1752911836994,4.56340278,177.18,177.17,8.8101]
[1752911842204,1.41340278,177.18,177.17,8.8101]
[1752911843306,4.56340278,177.18,177.17,8.8101]
[1752911844204,1.41340278,177.18,177.14,3.17]
[1752911844404,1.41340278,177.15,177.14,3.17]
[1752911845909,1.41340278,177.15,177.14,8.8111]
[1752911846108,1.41340278,177.15,177.14,5.6411]
[1752911846307,1.41340278,177.15,177.14,8.8111]
[1752911847010,4.56340278,177.15,177.14,8.8111]
[1752911852711,1.41340278,177.15,177.14,8.8111]
[1752911860225,4.55340278,177.15,177.14,3.17]
[1752911861616,1.41340278,177.15,177.08,6.11836457]
[1752911861824,4.55340278,177.12,177.08,1.41340278]
[1752911862023,4.55340278,177.12,177.11,5.642]
[1752911863623,4.55340278,177.12,177.11,8.642]
[1752911867523,4.55340278,177.12,177.11,3.0]
[1752911870927,3.14,177.11,177.09,3.0]
[1752911871125,4.55340278,177.1,177.09,3.0]
[1752911872524,3.14,177.09,177.08,3.0]
[1752911872732,4.55340278,177.09,177.08,3.0]
[1752911874029,1.41340278,177.09,177.08,3.0]
[1752911875034,4.55340278,177.09,177.08,3.0]
[1752911880738,1.41340278,177.09,177.08,3.0]
[1752911881238,1.41340278,177.09,177.08,8.643]
[1752911881536,1.41340278,177.09,177.08,3.0]
[1752911882241,4.55340278,177.09,177.08,3.0]
[1752911887950,4.55340278,177.09,177.06,8.7536]
[1752911888151,4.64340278,177.07,177.06,3.11]
[1752911894552,1.41340278,177.07,177.06,3.11]
[1752911896059,4.64340278,177.07,177.06,3.11]
[1752911898459,3.23,177.06,177.04,3.11]
[1752911898663,1.41340278,177.05,177.04,3.11]
[1752911898961,4.64340278,177.05,177.04,3.11]
[1752911900155,4.64340278,177.05,177.03,3.11]
[1752911900361,4.64340278,177.04,177.03,3.11]
[1752911901463,4.64340278,177.04,177.02,3.11]
[1752911901660,4.64340278,177.03,177.02,3.11]
[1752911903164,1.41340278,177.03,177.02,3.11]
[1752911904965,4.64340278,177.03,177.02,3.11]
[1752911906071,3.23,177.02,177.01,3.11]
[1752911906264,4.64340278,177.02,177.01,3.11]
[1752911907765,1.41340278,177.02,177.01,3.11]
[1752911909569,1.41340278,177.03,177.01,3.11]
[1752911909871,1.41340278,177.08,177.02,3.11]
[1752911910070,1.41340278,177.08,177.04,3.11]
[1752911911972,1.41340278,177.09,177.05,1.41340278]
[1752911912174,1.41340278,177.09,177.06,3.11]
[1752911912471,4.64340278,177.09,177.06,3.11]
[1752911919279,1.41340278,177.09,177.06,3.11]
[1752911919477,3.3,177.08,177.06,3.11]
[1752911921176,1.41340278,177.09,177.06,3.11]
[1752911921381,4.71340278,177.07,177.06,3.11]
[1752911932093,3.3,177.06,177.04,3.33]
[1752911932393,4.71340278,177.05,177.04,3.33]
[1752911933395,4.71340278,177.05,176.98,6.13068561]
[1752911933592,1.41340278,177.02,176.98,6.13068561]
[1752911933785,1.41340278,177.02,177.0,5.6452]
[1752911934094,1.41340278,177.02,177.01,3.33]
[1752911934293,1.41340278,177.02,177.01,8.9752]
[1752911935594,1.41340278,177.03,177.01,8.9752]
[1752911935794,1.41340278,177.03,177.02,3.33]
[1752911936494,1.41340278,177.03,177.02,8.9748]
[1752911936694,4.71340278,177.04,177.02,5.6448]
[1752911936895,4.71340278,177.04,177.03,3.33]
[1752911936896,1.41340278,177.04,177.03,3.33]
[1752911938693,4.71340278,177.04,177.03,3.33]
[1752911942693,3.3,177.04,177.03,3.33]
[1752911942898,1.41340278,177.04,177.03,3.33]
[1752911946201,4.46340278,177.05,177.03,3.33]
[1752911947901,1.41340278,177.05,177.03,3.33]
[1752911948296,1.41340278,177.06,177.03,3.33]
[1752911948493,1.41340278,177.06,177.04,5.6439]
[1752911948699,1.41340278,177.06,177.05,3.29]
[1752911949603,4.46340278,177.06,177.05,3.29]
[1752911950102,3.05,177.05,177.01,3.29]
[1752911950301,3.05,177.03,177.01,3.29]
[1752911950698,3.05,177.03,177.02,8.9348]
[1752911951201,4.46340278,177.04,177.03,3.29]
[1752911951403,4.46340278,177.04,177.03,8.9345]
[1752911951404,1.41340278,177.04,177.03,8.9345]
[1752911951996,3.05,177.05,177.04,3.29]
[1752911963911,3.05,177.05,177.04,8.9342]
[1752911968517,4.46340278,177.06,177.05,5.6439]
[1752911968716,1.41340278,177.06,177.05,8.9339]
[1752911972820,4.46340278,177.06,177.05,8.9339]
[1752911973022,3.05,177.06,177.05,8.9339]
[1752911973224,4.46340278,177.07,177.06,5.6434]
[1752911973421,4.46340278,177.07,177.06,8.9334]
[1752911982726,1.41340278,177.07,177.04,5.644]
[1752911982933,225.36184475,177.15,177.03,3.27]